Cogmind - Beta 14 @@@ ROGUE MODE // 2025.01.18 @ 09:19:14 Player: Clong Result: Destroyed by G-34 Mercenary with Small Laser Performance ------------- Evolutions (1) 500 Regions Visited (2) 400 Robots Destroyed (12) 60 Value Destroyed (205) 205 Prototype IDs (0) 0 Alien Tech Used (0) 0 Bonus (0) 0 TOTAL SCORE: 1165 Bonus ------- None Cogmind --------- Core Integrity 0/400 Matter 294/300 Energy 250/250 System Corruption 3% Temperature Cool (6) Movement Treading (160) Location -9/Materials Parts ------- > --- POWER (1) -------- Ion Engine > --- PROPULSION (2) --- Light Treads > --- UTILITY (3) ------ (None) > --- WEAPON (3) ------- Light Assault Rifle Light Assault Rifle Light Assault Rifle > --- INVENTORY (5) ---- Ion Engine Light Ion Engine Light Treads Light Treads Aluminum Leg Peak State ------------ > --- POWER ------------ Ion Engine > --- PROPULSION ------- Light Treads Light Treads > --- UTILITY ---------- Heat Sink Small Storage Unit Light Armor Plating > --- WEAPON ----------- Particle Gun Particle Cannon Light Assault Rifle > --- INVENTORY -------- Ion Engine Ion Engine Light Treads Light Treads Aluminum Leg Light Assault Rifle [Rating: 11] Favorites ----------- Power Ion Engine Engine Ion Engine Propulsion Light Treads Treads Light Treads Utility Small Storage Unit Device Heat Sink Storage Small Storage Unit Protection Light Armor Plating Weapon Light Assault Rifle Energy Gun Particle Gun Energy Cannon Particle Cannon Ballistic Gun Light Assault Rifle Build | -11 -10 -9 ------- Run | Yrd Mat Mat Slots Evolved 2 | . . 2 Power . | . . . Propulsion . | . . . Utility 1 | . . 1 Weapon 1 | . . 1 Parts Attached 19 | 6 . 13 Power 2 | 1 . 1 Engine 2 | 1 . 1 Core . | . . . Reactor . | . . . Propulsion 4 | 2 . 2 Treads 4 | 2 . 2 Leg . | . . . Wheel . | . . . Hover . | . . . Flight . | . . . Utility 4 | 1 . 3 Device 2 | . . 2 Storage 1 | 1 . . Processor . | . . . Hackware . | . . . Protection 1 | . . 1 Artifact . | . . . Weapon 9 | 2 . 7 Energy Gun 1 | . . 1 Energy Cannon 1 | . . 1 Ballistic Gun 7 | 2 . 5 Ballistic Cannon . | . . . Launcher . | . . . Special Weapon . | . . . Impact Weapon . | . . . Slashing Weapon . | . . . Piercing Weapon . | . . . Special Melee Weapon . | . . . Unidentified Prototypes . | . . . Parts Lost 10 | . . 10 Power 1 | . . 1 Propulsion 2 | . . 2 Utility 4 | . . 4 Weapon 3 | . . 3 Highest Loss Streak 10 | . . 10 To Critical Strikes . | . . . Average Slot Usage (%) 73 | . 85 71 Engine 10 | . 14 10 Treads 19 | . 28 17 Device 2 | . . 2 Storage 9 | . 14 9 Protection 2 | . . 2 Energy Gun 2 | . . 2 Energy Cannon 6 | . . 8 Ballistic Gun 19 | . 28 17 Peak Build Rating 11 | 6 6 11 Average Rating 6 | 4 6 7 On Entrance 4 | . 6 6 Naked Turns 12 | . . 12 Heaviest Build 22 | 12 12 22 Greatest Support 40 | 40 40 40 Greatest Overweight (x) 4 | . . 4 Average Overweight (x) . | . . . Largest Inventory Capacity 8 | 8 8 8 Average Capacity 7 | 7 8 7 Most Carried 8 | 5 3 8 Average Carried 3 | 2 3 4 Final Capacity 8 | 8 8 5 Final Carried 5 | 3 3 5 Class Distribution -------------------- 45% | Mutant 33% | Gunner 15% | Tank 5% | Scavenger-Gunner Dominant Class ---------------- Mutant | -10/Materials Gunner | -9/Materials Resources | -11 -10 -9 ----------- Run | Yrd Mat Mat Matter Collected 395 | 190 . 205 Remotely . | . . . Salvage Created 315 | 9 . 306 Parts 29 | 4 . 25 Haulers Intercepted . | . . . Recyclers Shooed . | . . . Parts Field Recycled . | . . . Retrieved Matter . | . . . Parts Self-Destructed . | . . . Prevented . | . . . Kills | -11 -10 -9 ------- Run | Yrd Mat Mat Combat Hostiles Destroyed 7 | . . 7 Melee 2 | . . 2 Guns 2 | . . 2 Cannons 3 | . . 3 Classes Destroyed 5 | 2 . 3 Worker 3 | 1 . 2 Tunneler 2 | 1 . 1 Swarmer 3 | . . 3 Grunt 2 | . . 2 Sentry 2 | . . 2 Best Kill Streak 4 | 2 . 4 Combat Bots Only 2 | . . 2 Max Kills in Single Turn 2 | 1 . 2 Gunslinging . | . . . Exploded . | . . . Melee 1 | . . 1 Uniques/NPCs Destroyed . | . . . Combat | -11 -10 -9 -------- Run | Yrd Mat Mat Hostile Shots Fired 188 | . 8 180 Missed 38 | . 4 34 Damage Taken 1355 | . 34 1321 Core 410 | . 8 402 Absorbed by Shields . | . . . Core Remaining (%) 98 | 100 96 . Volleys Fired 32 | . . 32 Largest 3 | . . 3 Hottest 153 | . . 153 Shots Fired 75 | . . 75 Gun 53 | . . 53 Cannon 22 | . . 22 Launcher . | . . . Special . | . . . Kinetic 34 | . . 34 Thermal 41 | . . 41 Explosive . | . . . Electromagnetic . | . . . Robot Hit Streak 4 | . . 4 Robot Miss Streak 9 | . . 9 Penetration Max . | . . . Secondary Targets . | . . . Shots Hit Robots 23 | . . 23 Core Hits 20 | 1 . 19 Critical Kills . | . . . Critical Parts Destroyed . | . . . Critical Strikes . | . . . Melee Attacks . | . . . Impact . | . . . Slashing . | . . . Piercing . | . . . Sneak Attacks . | . . . Combat Hostiles . | . . . Follow-up Attacks . | . . . Damage Inflicted 482 | 3 . 479 Guns 269 | . . 269 Cannons 185 | . . 185 Explosions . | . . . Melee . | . . . Ramming 28 | 3 . 25 Kinetic 118 | . . 118 Thermal 336 | . . 336 Explosive . | . . . Electromagnetic . | . . . Impact . | . . . Slashing . | . . . Piercing . | . . . Highest Corruption 3 | . . 3 Average Corruption 2 | . . 2 Corruption Purged . | . . . Corruption Blocked . | . . . Effects 2 | . . 2 Message Errors 1 | . . 1 Matter Fused 1 | . . 1 Overload Shots . | . . . Overflow Damage 2 | . . 2 Projectiles 2 | . . 2 Explosions . | . . . Melee . | . . . Knockbacks . | . . . Impact . | . . . Kinetic . | . . . Secondary . | . . . Self-Inflicted Damage 7 | . . 7 Shots . | . . . Rammed 24 | 2 . 22 Targets Rammed 26 | 4 . 22 Kicked . | . . . Crushed 2 | 2 . . Highest Temperature 605 | . . 605 Average Temperature 246 | . . 246 Received Heat Transfer 138 | . . 138 Effects 17 | . . 17 Shutdowns 3 | . . 3 Energy Bleed 2 | . . 2 Interference 6 | . . 6 Short Circuit 1 | . . 1 Damage (minor) 3 | . . 3 Damage (major) 1 | . . 1 Damage (core) 1 | . . 1 Siege Activations . | . . . Robots Corrupted . | . . . Combat Hostiles . | . . . Parts Fried . | . . . Impact Corruptions . | . . . Robots Melted . | . . . Combat Hostiles . | . . . Parts Melted 1 | . . 1 Heat Transferred 666 | . . 666 Parts Sabotaged . | . . . Parts Stolen . | . . . Parts Stripped . | . . . Power Chain Reactions . | . . . Alert | -11 -10 -9 ------- Run | Yrd Mat Mat Peak Influence 170 | 10 21 170 Initial 8 | . 6 8 Average 25 | . 6 37 Maximum Alert Level . | . . . Low Security (%) 100 | 100 100 100 Level 1 . | . . . Level 2 . | . . . Level 3 . | . . . Level 4 . | . . . Level 5 . | . . . High Security . | . . . Max Security . | . . . Squads Dispatched 3 | . 1 2 Investigation 1 | . . 1 Extermination . | . . . Reinforcement 2 | . 1 1 Assault . | . . . Garrison . | . . . Intercept . | . . . Searches Triggered . | . . . Construction Impeded . | . . . Haulers Reinforced . | . . . Active Scanning Responses . | . . . Cargo Convoy Interrupts . | . . . Stealth | -11 -10 -9 --------- Run | Yrd Mat Mat Distress Signals 4 | . . 4 Communications Jammed . | . . . Distress Signals . | . . . Times Spotted 19 | . 4 15 Peak Tracking Total 5 | . 4 5 Tactical Retreats 1 | . . 1 Traps | -11 -10 -9 ------- Run | Yrd Mat Mat Traps Triggered 2 | . . 2 Indirectly . | . . . Trap Hack Attempts . | . . . Triggered . | . . . Disarmed . | . . . Reprogrammed . | . . . Reused . | . . . Traps Extracted . | . . . Installed . | . . . Triggered . | . . . Machines | -11 -10 -9 ---------- Run | Yrd Mat Mat Machines Disabled . | . . . Max in Single Turn . | . . . Machines Repaired . | . . . Machines Dismantled . | . . . Machines Sabotaged . | . . . Overloaded Fab Kills . | . . . Hacking | -11 -10 -9 --------- Run | Yrd Mat Mat Machines Accessed 3 | . . 3 Terminals 2 | . . 2 Fabricators . | . . . Repair Stations . | . . . Recycling Units 1 | . . 1 Scanalyzers . | . . . Garrison Access . | . . . Total Hacks 8 | . . 8 Successful 4 | . . 4 Failed 4 | . . 4 Catastrophic . | . . . Database Lockouts . | . . . Manual . | . . . Terminals 5 | . . 5 Fabricators . | . . . Repair Stations . | . . . Recycling Units 3 | . . 3 Scanalyzers . | . . . Garrison Access . | . . . Terminal Hacks 3 | . . 3 Dispatch Records 1 | . . 1 Maintenance Status 1 | . . 1 Patrol Status 1 | . . 1 Fabricator Hacks . | . . . Repair Station Hacks . | . . . Recycling Unit Hacks 1 | . . 1 Retrieve Components 1 | . . 1 Scanalyzer . | . . . Garrison Access Hacks . | . . . Unauthorized Hacks . | . . . Terminals . | . . . Fabricators . | . . . Repair Stations . | . . . Recycling Units . | . . . Scanalyzers . | . . . Garrison Access . | . . . Data Cores Recovered . | . . . Used . | . . . Hacking Detections 3 | . . 3 Full Trace Events 1 | . . 1 Feedback Events . | . . . Feedback Blocked . | . . . Robot Schematics Acquired . | . . . Robots Built . | . . . Authchips . | . . . Time . | . . . Total Robot Build Rating . | . . . Part Schematics Acquired . | . . . Parts Built . | . . . Authchips . | . . . Time . | . . . Total Part Build Rating . | . . . Parts Repaired . | . . . Time . | . . . Parts Recycled . | . . . Recycled Matter . | . . . Retrieved Matter . | . . . Retrieved Components . | . . . Parts Scanalyzed . | . . . Part Schematics Acquired . | . . . Parts Damaged . | . . . Bothacking | -11 -10 -9 ------------ Run | Yrd Mat Mat Used RIF Installer . | . . . Robots Hacked . | . . . Non-combat . | . . . Combat . | . . . Robot Hacks Applied . | . . . Relay Couplers Released . | . . . Fabnet Peak Effective % . | . . . Robots Rewired . | . . . Allies Hacked . | . . . Hacks Repelled . | . . . Allies | -11 -10 -9 -------- Run | Yrd Mat Mat Total Allies . | . . . Largest Group . | . . . Highest-Rated Group . | . . . Highest-Rated Ally . | . . . Total Orders . | . . . Ally Attacks . | . . . Total Damage . | . . . Kills . | . . . Allies Corrupted . | . . . Allies Melted . | . . . Intel | -11 -10 -9 ------- Run | Yrd Mat Mat Robot Analysis Total . | . . . Derelict Logs Recovered . | . . . Drone Launches . | . . . Drone Recoveries . | . . . Exploration | -11 -10 -9 ------------- Run | Yrd Mat Mat Turns Passed 944 | 208 106 630 Spaces Moved 519 | 139 67 313 Core 84 | 39 . 45 Treads 435 | 100 67 268 Legs . | . . . Wheels . | . . . Hover . | . . . Flight . | . . . Fastest Speed 50 | 50 160 50 Average Speed 146 | 129 160 151 Slowest Speed 250 | 160 160 250 Overloaded Moves . | . . . Propulsion Burnouts . | . . . Robots Hopped . | . . . Cave-ins Triggered . | . . . Exploration Rate (%) 17 | 8 21 22 Regions Visited 2 Branch Regions . Pre-discovered Areas . | . . . Known Exits Taken . | . . . Unknown Exits Taken 2 | 1 1 . Scrap Searched . | . . . Spaces Dug . | . . . Terrain Destroyed . | . . . Melee . | . . . Projectile . | . . . AOE . | . . . Terrain Rammed . | . . . Walls Destroyed . | . . . Machines Disabled . | . . . Actions | -11 -10 -9 --------- Run | Yrd Mat Mat Total 647 | 165 66 416 Wait 26 | 8 . 18 Move 517 | 138 66 313 Hop . | . . . Pick Up 23 | 9 . 14 Fast Attach . | . . . Attach 19 | 6 . 13 Detach 1 | . . 1 Swap . | . . . Drop 3 | . . 3 Fire 32 | . . 32 Melee . | . . . Ram 19 | . . 19 Kick . | . . . Crush 7 | 4 . 3 Escape Stasis . | . . . Rewire . | . . . Trap . | . . . Miscellaneous . | . . . Route ------- -11/Scrapyard -10/Materials -9/Materials History --------- Turn | Location | Event 15 | -11/Scrapyard | Discovered new exit (range 15) 209 | -11/Scrapyard | Entered Materials 293 | -10/Materials | Discovered new exit (range 14) 305 | -10/Materials | Build established: Mutant 315 | -10/Materials | Entered another Materials area 315 | -9/Materials | Evolved 2 slots: Utility x1, Weapon x1 802 | -9/Materials | Core integrity fell below 50% 828 | -9/Materials | Core integrity fell below 20% 875 | -9/Materials | Lost 10 parts (1p2n4u3w) 945 | -9/Materials | Destroyed by G-34 Mercenary with Small Laser Last Messages --------------- 00853_ Acquired Lgt. Assault Rifle. 00854_ K-01 Serf collects debris. 00858_ K-01 Serf cleans the Material Processor. 00859_ Acquired 20 matter. 00861_ K-01 Serf cleans the Material Processor. 00865_ Acquired Lgt. Ion Engine. 00867_ K-01 Serf cleans the Material Processor. 00867_ K-01 Serf collects debris. 00868_ Acquired 8 matter. 00869_ Acquired 2 matter. 00870_ K-01 Serf cleans the Material Processor. 00873_ K-01 Serf collects debris. 00879_ Acquired Lgt. Assault Rifle. 00889_ JBPPESCYS0HS38J9YVLWV#AFYE 00891_ Acquired 11 matter. 00899_ Acquired 9 matter. 00921_ Acquired Lgt. Treads. 00942_ Slammed into W-16 Scout. 00944_ System corrupted: Matter fused (-9). 00944_ Acquired 3 matter. Map ----- +----------------------------------------------------+ | #"T #?????#?????????????????????????????????? | | #"" #???????????????????????????????????????? | | + #?????????????#?????????????????????????? | | # #???????#???????????????????????????????? | | ########???????????????????????????????????????? | | #??????????????????????????????????????????????? | | #??????#????##########???#?????????????????????? | | #???????????# #?#???????????????????????? | | #?###???????# = #?????????????????????????? | | ### ####????# %% %% #?????????????????????????? | | # =[=#????# """%% #?????????????????????????? | | # =!#????# """""% #?????????????????????????? | | % # #????# """""% #??#??????????????????????? | | = # "Y" #????# """"" %#?????????????????????????? | | # """ [#????# """%%%#?????????????????????????? | | # #????# =* #???#?????????????????????? | | ###+#############+##########???????????????????? | | %! ^ = *! #???????????????????? | | ^ =%= #???????????????????? | | ^ =!%[[ #???????????????????? | | #####+################## #???????????????????? | | ??# #?????????????# #???????????????????? | | ??# """ #?????????????##%= ##???????????????????? | | ??# """ #??????????????#* #????????????????????? | | ??# """ !#???????######## w #????????????????????? | | ??# ## @ #????????????????????? | | ??# ## a#????????????????????? | | ??######### #????????????????????? | | ??????????? ######### #????????????????????? | | ???????????#????????????# ????????????????????? | | ????????????????????????# ???????????????????? | | ????????????????????????#g ??????????????????? | | ???????????????????????? g =?????????????????? | | ???????????????????????? a ????????????????? | | ???????????????????????? ????????????????? | | ???????????????????????? """ ""???????????????? | | ???????????????????????? """ """??????????????? | | ??????????????????????? "?? k"????????????????? | | ???????????????????????## ??? ????????????????? | | ????????????????????????? ??????????????????????? | | ????????????????????????? ??????????????????????? | | ?????????????????????????????????????????????????? | | ?????????????????????????????????????????????????? | | ?????????????????????????????????????????????????? | | ?????????????????????????????????????????????????? | | ?????????????????????????????????????????????????? | | ?????????????????????????????????????????????????? | | ?????????????????????????????????????????????????? | | ?????????????????????????????????????????????????? | | ?????????????????????????????????????????????????? | +----------------------------------------------------+ Best States ------------- Heat Dissipation 38 Energy Generation 10 Energy Capacity 250 Matter Stores 300 Matter Capacity 300 Sight Range 16 Terrain Scan Range 16 Terrain Scan Density 10 Armor Coverage 150 Evasion (%) 50 Recoil Reduction 2 Item Schematics ----------------- None Robot Schematics ------------------ None Fabricated ------------ Nothing Alien Tech Used ----------------- None Achievements -------------- Fist Fight Challenges ------------ None Game ------ Seed ProjectionSurgeScrapsphere Manual? 0 Play Time 00:12:38 Cumulative 1.6 hours Start 2025.01.17 @ 22:07:07 End 2025.01.18 @ 09:19:14 Sessions 3 Manual Loads 0 Difficulty Rogue Special Mode None Game No. 6 Rogue 6 Adventurer 0 Explorer 0 Win Type - Total 0 Types 0/0/0/0/0/0/0/0/0 Lore% 0 Gallery% 5 Achievement% 7 Wizard Run 0 Options --------- Layout 1 ASCII 0 Keyboard 0 Movement Arrows Keybinds 0 Fullscreen 2 Font 24/Smallcaps Map View 50x35 Zoom Use 4% Tactical HUD 1 Map Filters NONE Filters NONE Steam 1 RUN: 9559f05e-d084-499f-bba4-fc17a8ca31a2